bitfinex/quotes_ETHUSD_20241204
["timestamp","ask_amount","ask_price","bid_price","bid_amount"]
[1733302036991,0.16870624,3707.7,3706.6,3.0]
[1733302037191,2.69717,3707.6,3706.5,2.69793]
[1733302037497,3.03875762,3707.6,3706.5,2.69793]
[1733302038141,0.34158762,3707.6,3706.5,2.69793]
[1733302038296,0.34158762,3707.6,3706.3,0.7887]
[1733302038297,2.69718,3707.6,3706.3,3.2507239]
[1733302038495,2.6975,3707.2,3705.9,2.69839]
[1733302038952,2.69753,3707.1,3705.9,2.69839]
[1733302039239,0.4171734,3707.7,3705.7,0.81037907]
[1733302039240,0.55,3707.2,3705.7,0.81037907]
[1733302039393,0.55,3707.3,3706.2,2.69813]
[1733302039592,0.55,3707.4,3706.2,2.69813]
[1733302039798,0.324723,3707.3,3705.9,3.0]
[1733302040021,0.55,3707.6,3706.2,3.0]
[1733302040221,2.69738,3707.3,3706.2,3.0]
[1733302040532,0.55,3707.7,3706.0,3.0]
[1733302040739,2.69716,3707.6,3705.7,0.7834]
[1733302040950,0.55,3707.2,3705.7,0.7834]
[1733302041089,0.89959263,3707.2,3705.9,2.69833]
[1733302041294,2.69761,3707.0,3706.0,3.0]
[1733302041544,3.24746,3707.2,3705.7,0.7834]
[1733302042245,2.69752,3707.1,3705.9,2.69839]
[1733302042541,0.55,3707.2,3705.7,0.7834]
[1733302042542,0.55,3707.2,3706.1,5.69823]
[1733302042895,0.55,3707.2,3706.1,3.0]
[1733302043101,0.324739,3707.1,3706.3,3.0]
[1733302043300,0.324739,3707.1,3706.0,5.69831]
[1733302043537,0.324739,3707.1,3705.7,3.7834]
[1733302044338,0.324739,3707.1,3706.4,2.69797]
[1733302044529,2.69722,3707.6,3706.4,2.69801]
[1733302044742,2.69722,3707.6,3705.9,2.69833]
[1733302044743,0.55,3707.6,3705.9,2.69833]
[1733302045028,2.69717,3707.6,3706.4,2.69798]
[1733302045233,0.39655518,3707.6,3705.7,3.7834]
[1733302045404,0.39655518,3707.6,3706.6,2.69787]
[1733302045744,0.94655518,3707.7,3706.8,2.69772]
[1733302045954,0.55,3707.8,3706.8,2.69772]
[1733302046127,0.55,3707.8,3706.9,2.69766]
[1733302046459,0.39655518,3707.9,3706.9,2.69766]
[1733302046757,0.39655518,3707.9,3706.4,6.46079]
[1733302046758,0.30934252,3707.8,3706.5,3.0]
[1733302046962,0.39655518,3708.2,3706.4,0.7628]
[1733302047265,0.64432276,3708.1,3707.1,2.69748]
[1733302047561,0.55290083,3708.4,3707.1,2.69748]
[1733302047719,0.55290083,3708.4,3706.8,3.22624943]
[1733302047720,0.64428254,3708.0,3706.8,3.22624943]
[1733302047922,0.24780098,3707.9,3707.3,2.69735]
[1733302048157,0.39648156,3708.1,3707.6,2.69712]
[1733302048158,0.24780098,3707.8,3707.6,2.69712]
[1733302048460,0.24788906,3708.2,3707.6,0.7569]
[1733302048617,0.24788567,3708.5,3708.2,2.69668]
[1733302048816,0.39648156,3709.0,3708.2,2.69668]
[1733302049045,0.66088088,3709.3,3708.2,2.69668]
[1733302049046,0.64436968,3708.9,3708.2,2.69668]
[1733302049363,0.24788812,3708.8,3708.3,2.69663]
[1733302049585,0.24788812,3708.7,3708.4,2.69657]
[1733302049747,0.82958684,3709.4,3707.9,2.6969]
[1733302049748,0.24788812,3708.6,3707.9,2.6969]
[1733302049931,0.24788812,3708.5,3708.1,2.69674]
[1733302050139,0.64436081,3709.2,3708.2,2.6967]
[1733302050442,0.64452621,3709.1,3708.3,2.69664]
[1733302050612,0.64452621,3709.0,3708.4,2.69655]
[1733302050814,0.24787925,3709.4,3707.9,2.69694]
[1733302050815,0.64491813,3708.9,3707.9,2.69694]
[1733302051054,0.24804543,3708.8,3708.2,2.69672]
[1733302051239,0.24806391,3708.7,3708.2,2.69672]
[1733302051441,0.24811627,3708.6,3708.2,2.69672]
[1733302051753,0.39690226,3709.0,3707.9,0.39837933]
[1733302051957,0.24817199,3708.9,3708.6,2.69637]
[1733302052168,0.24817199,3708.8,3708.6,2.69641]
[1733302052372,0.39728395,3709.2,3708.6,2.69641]
[1733302052528,0.6455899,3709.1,3708.6,2.69641]
[1733302052722,0.24830595,3709.0,3708.6,2.69641]
[1733302052923,0.24830595,3708.9,3708.6,2.69641]
[1733302053236,0.24843339,3708.8,3708.6,2.69641]
[1733302053443,0.39728395,3709.2,3708.6,2.69643]
[1733302053654,0.64571857,3709.1,3708.6,2.69643]
[1733302053846,0.24843462,3709.0,3708.6,2.69643]
[1733302054042,0.24843462,3708.9,3708.6,2.69643]
[1733302054265,0.24853363,3709.4,3708.6,2.69643]
[1733302054591,0.64626586,3709.3,3708.6,2.69643]
[1733302054758,0.64626586,3709.2,3708.6,2.69643]
[1733302054944,0.64626586,3709.1,3707.8,3.0]
[1733302055148,0.24856379,3709.0,3708.7,2.69631]
[1733302055451,0.24856379,3708.9,3708.8,2.69628]
[1733302055834,0.24856379,3708.9,3708.6,2.69637]
[1733302056132,0.16863329,3709.5,3708.6,2.69637]
[1733302056133,0.24856379,3708.8,3708.6,2.69637]
[1733302056334,0.24878331,3708.7,3708.6,2.69637]
[1733302056538,0.24878331,3708.7,3708.1,3.47813]
[1733302056734,0.39805626,3709.2,3708.4,2.69651]
[1733302056973,0.64684264,3709.1,3708.5,2.69649]
[1733302057187,0.64684264,3709.0,3708.5,2.69649]
[1733302057477,0.24887522,3708.9,3708.5,2.69649]
[1733302057635,0.24887522,3708.8,3708.5,2.69649]
[1733302057835,0.24887522,3708.7,3708.5,2.69649]
[1733302058141,0.24887522,3708.6,3708.5,2.69649]
[1733302058371,0.39833415,3709.0,3708.3,2.69658]
[1733302058574,0.24896481,3708.9,3708.7,2.69629]
[1733302058880,0.24896481,3708.8,3708.7,2.69636]
[1733302059338,0.22234099,3708.8,3708.7,2.69636]
[1733302059539,0.22234099,3708.8,3708.7,3.50046]
[1733302059774,0.64757754,3709.6,3709.3,2.6959]
[1733302060078,0.39851593,3709.5,3709.3,2.6959]
[1733302060373,0.41767097,3709.8,3708.8,2.69628]
[1733302060553,0.39853772,3709.7,3708.9,0.350038]
[1733302060751,2.69521,3710.3,3709.2,2.69596]
[1733302060752,0.39853772,3709.6,3709.2,2.69596]
[1733302061074,0.39853772,3709.5,3708.9,0.350038]
[1733302061282,0.41773744,3709.8,3708.7,0.8041]
[1733302061574,0.24912743,3710.1,3710.0,2.69541]
[1733302061875,0.24923856,3710.4,3710.0,2.69541]
[1733302062048,0.39882587,3710.3,3710.0,2.69541]
[1733302062263,2.69463,3711.1,3710.0,2.69541]
[1733302062264,0.41780552,3710.6,3710.0,2.69541]
[1733302062456,0.39872979,3710.5,3709.5,0.8095]
[1733302062784,0.39877069,3710.7,3710.4,2.69512]
[1733302062964,0.24923168,3710.8,3710.5,2.69504]
[1733302063172,0.24923224,3711.0,3710.5,2.69504]
[1733302063376,0.64777186,3710.9,3710.3,2.69519]
[1733302063553,0.39853962,3710.8,3709.8,2.69556]
[1733302063755,0.16856696,3711.2,3709.8,2.69556]
[1733302063756,0.39853962,3710.7,3710.2,2.6952]
[1733302063947,0.39853962,3710.6,3710.3,2.69519]
[1733302064143,0.24923224,3710.9,3710.3,2.69519]
[1733302064347,0.39833372,3710.8,3710.1,2.69534]
[1733302064591,0.39833372,3710.7,3710.1,2.69534]
[1733302064795,0.39833293,3710.8,3709.8,0.40551142]
[1733302064992,0.24923224,3711.0,3710.2,2.69525]
[1733302065195,0.3983426,3710.9,3710.2,2.69525]
[1733302065396,0.3983426,3710.8,3710.2,2.69525]
[1733302065605,0.3983426,3711.0,3710.2,2.69525]
[1733302065784,0.3983426,3710.9,3710.2,2.69525]
[1733302065992,0.3983426,3710.8,3710.2,2.69525]
[1733302066188,0.3983426,3711.1,3710.2,2.69525]
[1733302066502,0.3983426,3711.1,3709.7,2.69559]
[1733302066503,0.3983426,3711.0,3709.9,0.7567]
[1733302066702,0.64757484,3711.5,3710.8,2.69483]
[1733302067010,0.64757484,3711.7,3710.7,2.6949]
[1733302067159,0.3983426,3711.6,3710.7,2.6949]
[1733302067365,0.3983426,3711.6,3710.8,2.69483]
[1733302067586,0.73195067,3711.5,3710.6,2.69497]
[1733302067876,0.39778219,3711.6,3710.6,2.69497]
[1733302068094,0.39778219,3711.5,3710.6,2.69497]
[1733302068273,0.41435645,3712.0,3710.7,3.0]
[1733302068274,0.64701443,3711.8,3710.7,3.0]
[1733302068474,0.39778219,3711.7,3710.7,3.0]
[1733302068692,0.39778219,3711.6,3710.7,3.0]
[1733302068893,0.73189663,3711.5,3710.7,3.0]
[1733302069068,0.33411444,3711.5,3710.7,3.0]
[1733302069262,0.73189663,3711.5,3710.7,3.0]
[1733302069672,0.39778219,3711.4,3710.7,3.0]
[1733302070090,0.73189663,3711.5,3710.7,3.0]
[1733302071184,0.39746832,3711.5,3710.6,3.0]
[1733302071500,0.64590338,3711.4,3710.7,2.69488]
[1733302071707,0.38899195,3711.6,3710.5,0.7697]
[1733302071708,0.24843506,3711.3,3710.5,0.7697]
[1733302071865,0.24843506,3711.2,3710.9,3.0]
[1733302072072,0.39746832,3711.5,3710.9,3.0]
[1733302072296,0.64593463,3711.4,3710.9,3.0]
[1733302072495,0.24846631,3711.3,3710.9,3.0]
[1733302072835,0.24846306,3711.2,3710.6,5.69493]
[1733302073133,0.24846306,3711.1,3710.6,5.69493]
[1733302073318,0.24846306,3711.0,3710.6,5.69493]
[1733302073527,0.24846306,3710.9,3710.6,5.69493]
[1733302073843,0.24842119,3711.4,3710.2,3.9476462]
[1733302074131,0.64626235,3711.3,3710.3,5.39038]
[1733302074338,0.24856244,3711.2,3710.7,2.69484]
[1733302074493,0.24842119,3711.3,3710.7,2.69484]
[1733302074494,0.24856244,3711.1,3710.8,3.0]
[1733302074693,3.6582251,3711.8,3710.9,5.69476]
[1733302074694,0.24856244,3711.0,3710.9,5.69476]
[1733302075141,0.39785502,3711.4,3711.3,2.69447]
[1733302075293,0.24880702,3711.4,3711.3,5.69447]
[1733302075636,0.64652368,3711.8,3711.4,3.0]
[1733302075797,0.24881797,3711.7,3711.6,5.69419]
[1733302076297,0.64706435,3711.7,3711.6,5.69419]
[1733302076632,0.64706435,3711.7,3711.6,3.0]
[1733302076803,0.89548554,3711.7,3711.1,2.69458]
[1733302077138,0.24881797,3711.6,3711.5,2.69432]
[1733302077344,0.41403532,3712.7,3711.2,3.0]
[1733302077345,0.16849917,3712.2,3712.1,0.7618]
[1733302077553,0.4141051,3713.2,3712.6,3.0]
[1733302077835,0.4141051,3713.9,3712.9,2.69328]
[1733302078164,3.10768297,3714.0,3712.9,2.69328]
[1733302078431,0.3107683,3713.9,3712.9,2.69328]
[1733302078731,0.3107683,3713.9,3712.9,2.69326]
[1733302078937,0.55129697,3714.5,3712.9,2.69326]
[1733302078938,2.69252,3714.0,3712.9,2.69326]
[1733302079238,0.2,3714.3,3712.2,0.52795566]
[1733302079394,3.1,3714.4,3712.2,0.52795566]
[1733302079395,2.69327,3713.0,3712.2,0.52795566]
[1733302079596,2.69332,3712.9,3711.8,3.0]
[1733302080162,2.69355,3712.6,3711.4,2.6944]
[1733302080360,0.324355,3712.5,3711.4,2.6944]
[1733302080564,0.324355,3712.5,3711.2,3.47812]
[1733302080775,0.55,3712.8,3711.2,0.7836]
[1733302080776,0.55,3712.6,3711.2,0.7836]
[1733302080989,0.55,3712.8,3710.9,3.47829]
[1733302081278,2.69373,3712.4,3711.0,3.24575526]
[1733302081485,2.69375,3712.3,3711.0,3.24575526]
[1733302081639,2.69384,3712.2,3711.0,3.24575526]
[1733302081843,0.269384,3712.1,3711.0,0.55113526]
[1733302082248,0.269384,3712.1,3710.9,3.47835]
[1733302082449,0.269384,3712.1,3711.0,3.0]
[1733302082779,0.269384,3712.1,3711.1,3.0]
[1733302084214,0.4152307,3712.3,3710.9,1.32982981]
[1733302084215,2.69405,3711.9,3710.9,0.7836]
[1733302084361,0.4152307,3712.1,3710.9,0.7836]
[1733302084555,2.69398,3712.0,3710.9,3.47833]
[1733302084755,2.69404,3711.9,3710.9,0.7836]
[1733302085161,2.69397,3712.0,3710.9,0.7836]
[1733302085355,3.22848887,3711.9,3710.9,0.7836]
[1733302085595,2.8626388,3711.8,3710.9,0.7836]
[1733302085767,0.1685188,3711.7,3710.9,0.7836]
[1733302085974,0.1685188,3711.6,3710.9,0.7836]
[1733302086176,0.1685188,3711.5,3710.9,0.7836]
[1733302086366,0.1685188,3711.4,3710.9,0.7836]
[1733302086698,2.69425,3711.6,3710.9,0.7836]
[1733302086911,0.16852828,3711.5,3710.9,0.7836]
[1733302087067,0.16852828,3711.4,3710.9,0.7836]
[1733302087273,2.6941,3711.9,3710.9,0.7836]
[1733302087617,0.41550976,3711.6,3710.9,0.7836]
[1733302087913,0.56741748,3711.5,3710.9,0.7836]
[1733302088216,0.98292724,3711.4,3710.9,0.7836]
[1733302088374,0.56741748,3711.3,3710.7,3.7846]
[1733302088570,0.56741748,3711.2,3710.7,3.7846]
[1733302088776,0.39888937,3711.1,3710.7,1.48676727]
[1733302089073,0.39888937,3711.0,3710.7,1.48676727]
[1733302089309,0.64870524,3710.9,3710.7,1.48676727]
[1733302089484,0.64870524,3710.8,3710.7,1.48676727]
[1733302090187,0.89865837,3710.8,3710.7,1.48676727]
[1733302090388,0.64870524,3710.8,3710.7,0.7846]
[1733302090588,0.89868432,3710.8,3710.7,0.7846]
[1733302091390,1.06721909,3710.8,3710.7,0.7846]
[1733302091689,1.06721909,3710.8,3710.6,3.0]
[1733302091919,1.06721909,3710.7,3710.3,0.8298]
[1733302092140,1.06721909,3710.6,3710.4,0.13738255]
[1733302092429,0.89868432,3710.5,3710.4,0.13738255]
[1733302093304,0.89868432,3710.5,3710.4,3.13738255]
[1733302093502,0.89868432,3710.5,3710.3,0.8298]
[1733302093829,0.89868432,3710.4,3710.3,0.8298]
[1733302094017,1.06723845,3710.4,3710.3,0.8298]
[1733302094397,1.06723845,3710.4,3709.9,3.8069]
[1733302094696,1.48274821,3710.3,3709.9,0.8069]
[1733302095029,2.69422,3711.7,3709.4,3.24093401]
[1733302095030,0.41550976,3710.1,3709.4,3.24093401]
[1733302095195,1.46762411,3710.0,3709.5,1.0953934]
[1733302095393,1.46762411,3709.9,3709.5,0.7713]
[1733302095599,1.46762411,3709.8,3709.5,0.7713]
[1733302095799,1.46762411,3709.7,3709.5,0.7713]
[1733302096005,1.06723845,3709.6,3709.5,0.7713]
[1733302097249,1.06723845,3709.6,3709.4,3.0]
[1733302097442,0.65010364,3709.5,3709.4,3.0]
[1733302097740,0.90006186,3709.5,3709.3,0.53923141]
[1733302097921,0.65010364,3709.4,3709.3,0.53923141]
[1733302098134,0.65010364,3709.4,3709.3,6.23515141]
[1733302098294,0.25003986,3709.4,3709.3,6.23515141]
[1733302098545,0.25003986,3709.4,3709.3,6.93727655]
[1733302099736,0.25003986,3709.4,3709.3,1.24135655]
[1733302099931,0.64974547,3709.4,3709.3,3.70212514]
[1733302100360,0.25003986,3709.4,3709.3,3.70212514]
[1733302100880,2.69521,3710.3,3709.3,0.70212514]
[1733302101045,2.69521,3710.3,3709.3,3.0]
[1733302101046,1.8834392,3710.2,3709.3,3.0]
[1733302101367,1.46720247,3710.1,3709.3,3.0]
[1733302101531,1.0676152,3710.0,3709.3,3.0]
[1733302101869,1.0676152,3709.9,3709.1,0.7861]
[1733302102173,0.89901762,3709.8,3709.2,3.0]
[1733302102372,0.89901762,3709.7,3709.2,0.70319096]
[1733302102577,0.24972138,3709.6,3709.4,3.0]
[1733302102871,0.24972138,3709.5,3709.4,5.69585]
[1733302103281,0.64881145,3710.1,3709.4,5.69585]
[1733302103441,0.89832424,3710.0,3709.5,2.69577]
[1733302103630,0.89832424,3709.9,3709.2,2.69599]
[1733302103836,0.41623673,3710.5,3709.6,2.69567]
[1733302103837,0.24951279,3709.8,3709.6,2.69567]
[1733302104040,0.24951279,3709.7,3709.6,2.69567]
[1733302104448,0.64873857,3710.4,3709.4,3.48652]
[1733302104794,0.64873857,3710.4,3709.3,0.97278396]
[1733302104795,3.59345029,3710.3,3709.3,0.97278396]
[1733302105086,0.89823029,3710.2,3709.3,0.97278396]
[1733302105242,0.89823029,3710.1,3709.3,0.97278396]
[1733302105438,0.41623673,3710.5,3709.3,0.97278396]
[1733302105439,0.64866536,3710.0,3709.4,3.0]
[1733302105653,0.24949172,3709.9,3709.4,0.7742184]
[1733302105877,0.24949172,3709.8,3709.4,3.0]
[1733302106187,2.69505,3710.5,3709.2,0.7694]
[1733302106188,0.64873857,3710.2,3709.2,0.7694]
[1733302106474,0.24946521,3710.1,3709.6,2.69564]
[1733302106676,0.24946521,3710.0,3709.6,2.69564]
[1733302106976,0.24946521,3709.9,3709.8,2.69556]
[1733302107174,0.24951048,3710.3,3709.8,2.69556]
[1733302107384,0.24951048,3710.2,3709.8,2.69556]
[1733302107557,0.24954356,3710.1,3709.8,2.69556]
[1733302107738,0.55,3710.7,3709.7,0.7694]
[1733302108073,0.89835579,3710.6,3709.7,0.7694]
[1733302108232,0.89835579,3710.5,3709.7,0.7694]
[1733302108437,0.89835579,3710.4,3709.4,3.46523]
[1733302108671,0.89835579,3710.3,3709.5,3.0]
[1733302108873,0.89835579,3710.2,3709.6,3.0]
[1733302109036,0.89835579,3710.1,3709.6,3.0]
[1733302109240,0.89835579,3710.0,3709.6,3.0]
[1733302109470,0.24954254,3709.9,3709.4,0.346523]
[1733302109773,0.24954254,3709.8,3709.5,3.0]
[1733302109982,0.24954254,3709.7,3709.5,3.0]
[1733302110189,0.24954254,3709.6,3709.5,3.0]
[1733302110480,2.69513,3710.4,3709.5,3.0]
[1733302110481,0.64881325,3710.0,3709.5,3.0]
[1733302110669,0.24996902,3709.9,3709.5,3.0]
[1733302110870,0.24996902,3709.8,3709.5,2.69577]
[1733302111084,0.24996902,3709.7,3709.5,2.69577]
[1733302111253,0.64881325,3710.0,3709.6,0.8027]
[1733302111457,0.24990854,3709.9,3709.6,0.8027]
[1733302111664,0.24990854,3709.8,3709.5,2.69577]
[1733302111865,0.24990854,3709.7,3709.5,2.69577]
[1733302112041,0.64881325,3710.1,3709.5,2.69577]
[1733302112249,0.24990254,3710.0,3709.3,0.7927]
[1733302112444,0.24990254,3709.9,3709.4,3.0]
[1733302112650,0.64881325,3710.2,3709.6,2.69567]
[1733302112870,0.24992571,3710.1,3709.6,2.69567]
[1733302113149,0.24992571,3710.0,3709.6,2.69567]
[1733302113350,0.24992571,3709.9,3709.6,2.69567]
[1733302113685,0.64881325,3710.3,3709.7,2.69562]
[1733302113982,0.49944483,3710.2,3709.7,2.69562]
[1733302114161,0.24990127,3710.1,3709.7,2.69562]
[1733302114481,0.24990127,3710.0,3709.7,2.69562]
[1733302114686,0.24988827,3709.9,3709.7,2.69562]
[1733302114887,0.24988838,3710.2,3709.7,2.6956]
[1733302115207,0.24986923,3710.1,3709.7,2.6956]
[1733302115363,0.24986923,3710.0,3709.7,2.6956]
[1733302115682,0.24986923,3709.9,3709.7,2.6956]
[1733302115859,0.64970961,3710.2,3709.7,2.6956]
[1733302116060,0.89963376,3710.1,3709.7,2.6956]
[1733302116261,0.49981253,3710.0,3709.7,2.6956]
[1733302116460,0.24992415,3709.9,3709.7,2.6956]
[1733302116677,0.24992415,3709.8,3709.7,2.6956]
[1733302117262,0.24992415,3709.8,3709.7,3.3300461]
[1733302117714,0.2500781,3709.8,3709.7,3.3300461]
[1733302118020,0.2500781,3709.8,3709.7,0.6344461]
[1733302118223,0.2500781,3709.8,3709.5,0.648861]
[1733302118531,0.2500781,3709.7,3709.5,0.648861]
[1733302118830,0.2500781,3709.6,3709.5,6.344641]
[1733302120132,0.65049168,3709.6,3709.5,0.648861]
[1733302120310,0.2500781,3709.6,3709.5,3.648861]
[1733302120510,0.65052243,3709.6,3709.5,3.648861]
[1733302120836,0.65052243,3709.6,3709.5,6.344641]
[1733302121698,0.65052243,3709.6,3709.5,0.648861]
[1733302121904,0.65052243,3709.6,3709.5,3.648861]
[1733302122112,0.90090898,3709.6,3709.5,3.648861]
[1733302122438,1.06950407,3709.6,3709.0,0.551207]
[1733302122675,1.06950407,3709.5,3709.3,3.0]
[1733302122812,0.90090898,3709.4,3709.3,3.0]
[1733302123110,1.06951381,3709.4,3708.5,0.7751]
[1733302123456,0.41679683,3709.2,3708.5,3.61487232]
[1733302123659,1.47020183,3709.1,3708.5,3.4716]
[1733302123938,1.06951381,3709.0,3708.5,3.4716]
[1733302124147,1.06951381,3708.9,3708.5,3.4716]
[1733302124307,0.65128864,3708.8,3708.3,2.69665]
[1733302124500,0.65128864,3708.7,3708.5,2.6965]
[1733302124723,0.40084962,3709.1,3708.5,0.34716]
[1733302124945,1.07054465,3709.0,3708.4,3.0]
[1733302125269,1.07054465,3708.9,3708.4,2.69655]
[1733302125556,0.65138172,3708.8,3708.5,3.0]
[1733302125703,0.65138172,3708.7,3708.6,3.0]
[1733302125904,0.65138172,3708.7,3708.6,2.69643]
[1733302126149,0.65138172,3708.7,3708.6,5.69643]
[1733302126381,0.25053101,3708.7,3708.6,5.69643]
[1733302126504,0.6511411,3708.7,3708.6,5.69643]
[1733302127206,0.6511411,3708.7,3708.5,3.0]
[1733302127407,0.25053101,3708.6,3708.5,3.0]
[1733302127603,0.25053101,3708.6,3708.5,3.647166]
[1733302127845,2.69578,3709.5,3708.5,3.647166]
[1733302128045,0.25031187,3709.0,3708.5,3.0]
[1733302128210,0.90112323,3708.9,3708.5,2.69644]
[1733302128409,0.65081136,3708.8,3708.6,5.6964]
[1733302128617,0.25031184,3708.7,3708.6,5.69643]
[1733302128816,0.25027962,3709.2,3708.6,6.45323]
[1733302129127,0.40049899,3710.0,3708.6,6.45323]
[1733302129128,0.25028827,3709.1,3709.0,2.69611]
[1733302130731,0.25028827,3709.1,3709.0,5.69611]
[1733302130944,0.25028827,3709.1,3709.0,6.45311]
[1733302131430,0.819658,3709.9,3709.4,2.69585]
[1733302131625,1.07008425,3709.8,3709.1,3.0]
[1733302131828,0.90148253,3709.7,3709.1,0.69895411]
[1733302132021,0.90148253,3709.6,3709.4,3.0]
[1733302132222,0.41718641,3710.1,3709.4,3.0]
[1733302132223,0.65107292,3709.5,3709.4,3.0]
[1733302133535,0.65107292,3709.5,3709.4,5.69585]
[1733302133933,0.25041266,3709.5,3709.4,6.46955]
[1733302134136,0.25041266,3709.5,3709.4,7.45600341]
[1733302134656,0.41738881,3710.4,3709.8,2.69553]
[1733302134855,0.25042476,3710.1,3708.9,0.7829]
[1733302135022,0.81967641,3710.0,3708.9,0.7829]
[1733302135363,1.47075621,3709.9,3709.0,2.69612]
[1733302135560,1.47075621,3709.8,3709.0,2.69612]
[1733302135727,1.07010117,3709.7,3709.0,2.69612]
[1733302136071,0.90151486,3709.6,3709.1,2.69606]
[1733302136300,0.6510901,3709.5,3709.2,2.69599]
[1733302136466,0.25041927,3709.4,3709.3,2.69589]
[1733302136967,0.25041927,3709.4,3709.1,2.69607]
[1733302137156,0.25041927,3709.3,3709.1,2.69607]
[1733302137365,0.25041927,3709.2,3709.1,5.69607]
[1733302138185,0.25052013,3709.8,3709.1,3.0]
[1733302138400,0.90187037,3709.7,3709.2,2.69599]
[1733302138608,0.90188098,3709.6,3708.9,0.7829]
[1733302138757,0.65135024,3709.5,3709.0,0.647922]
[1733302139091,0.25051932,3709.4,3709.3,2.69592]
[1733302140495,0.25051932,3709.4,3709.1,2.69604]
[1733302140698,1.1116484,3710.1,3709.1,2.69604]
[1733302140699,0.25051932,3709.3,3709.1,2.69604]
[1733302140904,0.25060364,3709.7,3709.1,2.69604]
[1733302141102,0.90219368,3709.6,3709.1,2.69604]
[1733302141258,0.65159004,3709.5,3709.1,3.45119225]
[1733302141461,0.25061155,3709.4,3709.1,3.45119225]
[1733302141663,0.25061155,3709.3,3709.1,3.45119225]
[1733302141886,0.25070226,3709.7,3709.1,3.45119225]
[1733302142160,0.90252125,3709.6,3709.1,6.45119225]
[1733302142493,2.92096522,3710.1,3709.1,3.0]
[1733302142494,0.65181899,3709.5,3709.1,3.0]
[1733302142701,0.90257172,3709.4,3708.3,0.8029]
[1733302142886,0.90256553,3709.3,3708.0,0.8029]
[1733302143090,4.90465975,3709.2,3708.0,0.8029]
[1733302143401,7.60078975,3709.1,3708.0,0.8029]
[1733302143604,2.69636,3708.8,3707.9,0.55182682]
[1733302143899,0.25070012,3708.7,3708.6,3.50963]
[1733302144397,0.40110709,3709.3,3709.2,2.69599]
[1733302144604,1.05299292,3709.3,3709.2,2.69599]
[1733302144783,1.05299292,3709.3,3708.8,3.0]
[1733302144991,0.25072532,3709.2,3709.1,2.69604]
[1733302145313,0.25072532,3709.2,3709.1,5.69604]
[1733302146675,0.25072532,3709.2,3709.1,3.0]
[1733302146878,0.25072532,3709.2,3709.0,2.69608]
[1733302147074,0.40105002,3709.8,3709.1,5.69607]
[1733302147413,1.07096523,3709.7,3709.1,5.69607]
[1733302147576,0.90235861,3709.6,3709.1,5.69607]
[1733302147791,0.90235861,3709.5,3709.1,5.69607]
[1733302147973,0.65170155,3709.4,3709.2,2.69597]
[1733302148181,0.25065444,3709.3,3709.2,3.01481007]
[1733302148499,0.25065444,3709.3,3709.2,3.83221007]
[1733302152107,0.25065444,3709.3,3708.9,0.70757785]
[1733302152260,0.25065444,3709.2,3708.8,0.7887]
[1733302152461,0.25065444,3709.1,3708.8,3.48498]
[1733302152667,0.25065444,3709.0,3708.8,0.7887]
[1733302152897,0.25065444,3708.9,3708.6,2.69643]
[1733302153100,0.25065444,3708.8,3708.7,0.344753]
[1733302153400,0.25065444,3708.8,3708.5,0.7511]
[1733302153711,0.25090192,3708.7,3708.5,2.6965]
[1733302153996,0.40143846,3709.3,3708.4,2.69655]
[1733302154197,1.07251587,3709.2,3708.4,2.69657]
[1733302154399,1.07251587,3709.1,3708.2,0.7938]
[1733302154608,0.90388206,3709.0,3708.5,2.6965]
[1733302154896,0.25107818,3708.9,3708.5,2.6965]
[1733302155096,0.25107818,3708.8,3708.5,2.6965]
[1733302155303,1.96555558,3709.4,3708.5,2.6965]
[1733302155304,0.25107818,3708.7,3708.5,2.6965]
[1733302155511,0.16863059,3709.2,3708.3,3.09967459]
[1733302155713,4.9111591,3709.1,3708.1,3.0]
[1733302156001,0.41841724,3708.9,3707.9,2.69687]
[1733302156166,1.47430839,3708.8,3707.9,2.69687]
[1733302156367,1.07257057,3708.7,3707.9,2.69687]
[1733302156693,1.07257057,3708.6,3707.9,0.40187528]
[1733302157012,1.1116484,3709.0,3707.6,2.69709]
[1733302157013,0.65281671,3708.5,3707.6,2.69709]
[1733302157214,0.65281671,3708.4,3707.7,3.0]
[1733302157500,0.65281671,3708.3,3707.8,3.0]
[1733302157710,0.25108335,3708.2,3707.7,2.69705]
[1733302157881,0.25108335,3708.1,3707.7,2.69705]
[1733302158207,0.25108335,3708.0,3707.8,0.269705]
[1733302158375,2.69647,3708.6,3707.8,0.269705]
[1733302158576,2.69647,3708.6,3707.5,2.69721]
[1733302158577,1.07207385,3708.5,3707.5,2.69721]
[1733302158785,0.65246179,3708.4,3707.6,2.69714]
[1733302159013,0.65246179,3708.3,3707.6,2.69714]
[1733302159186,0.25094797,3708.2,3707.6,2.69714]
[1733302159538,0.25094797,3708.1,3707.6,2.69714]
[1733302159821,0.25094797,3708.0,3707.7,0.269714]
[1733302160119,0.25094797,3707.9,3707.2,2.69742]
[1733302160276,0.25094797,3707.8,3707.2,2.69742]
[1733302160476,0.25094797,3707.7,3707.0,3.50387]
[1733302160676,0.25094797,3707.6,3707.1,0.350387]
[1733302160974,0.25094797,3707.5,3707.1,0.350387]
[1733302161175,2.69674,3708.2,3707.1,3.047907]
[1733302161407,1.07063413,3708.1,3706.5,1.26416707]
[1733302161609,2.69702,3707.8,3706.7,2.69774]
[1733302161792,0.90191179,3707.7,3706.7,2.69774]
[1733302161980,3.34856278,3707.6,3706.5,3.52163]
[1733302162299,0.65140278,3707.5,3706.9,2.69764]
[1733302162499,2.6965,3708.5,3706.9,2.69764]
[1733302162500,0.41904978,3708.0,3707.1,2.69747]
[1733302162813,0.65091144,3707.9,3707.1,2.69747]
[1733302162985,3.11506225,3708.4,3706.9,0.269764]
[1733302162986,0.65091144,3707.8,3706.9,0.269764]
[1733302163189,0.25034793,3707.7,3706.9,0.269764]
[1733302163386,0.25034793,3707.7,3706.7,0.0269724]
[1733302163387,0.25034793,3707.6,3707.3,2.69735]
[1733302163592,0.41847225,3708.5,3707.3,2.69735]
[1733302163593,0.65073605,3708.1,3707.3,2.69735]
[1733302163817,0.58717955,3708.4,3706.9,2.69763]
[1733302163818,0.25019841,3708.0,3707.1,0.8125]